[Event "Titled Tuesday Blitz August 1 Early 2023"]
[White "Vantika Agrawal"]
[Black "Molenda, Marcin"]
[WhiteFideId "25050389"]
[BlackFideId "1173065"]
[WhiteElo "2625"]
[BlackElo "2515"]
[Result "1-0"]
[Round "10"]
[TimeControl "180+1"]
[Date "2023.08.01"]
[WhiteClock "0:00:59"]
[BlackClock "0:00:01"]
[Board "71"]

1. d4 {[%clk 0:03:00]}  d5 {[%clk 0:02:58]} 2. c4 {[%clk 0:02:58]}  e6 {[%clk 0:02:58]} 3. Nf3 {[%clk 0:02:58]}  Nf6 {[%clk 0:02:57]} 4. g3 {[%clk 0:02:59]}  dxc4 {[%clk 0:02:47]} 5. Bg2 {[%clk 0:02:59]}  a6 {[%clk 0:02:48]} 6. O-O {[%clk 0:02:59]}  Nc6 {[%clk 0:02:49]} 7. Bg5 {[%clk 0:02:53]}  Rb8 {[%clk 0:02:48]} 8. e3 {[%clk 0:02:51]}  Be7 {[%clk 0:02:45]} 9. Nfd2 {[%clk 0:02:47]}  O-O {[%clk 0:02:05]} 10. Nxc4 {[%clk 0:02:46]}  h6 {[%clk 0:02:03]} 11. Bxf6 {[%clk 0:02:42]}  Bxf6 {[%clk 0:02:04]} 12. Nc3 {[%clk 0:02:42]}  Ne7 {[%clk 0:02:04]} 13. Ne4 {[%clk 0:02:42]}  Nd5 {[%clk 0:01:58]} 14. Rc1 {[%clk 0:02:42]}  Be7 {[%clk 0:01:57]} 15. Ne5 {[%clk 0:02:39]}  c6 {[%clk 0:01:45]} 16. a3 {[%clk 0:02:36]}  a5 {[%clk 0:01:46]} 17. Qc2 {[%clk 0:02:35]}  Bd7 {[%clk 0:01:41]} 18. Rfd1 {[%clk 0:02:35]}  Be8 {[%clk 0:01:41]} 19. Nc5 {[%clk 0:02:28]}  Qd6 {[%clk 0:01:28]} 20. e4 {[%clk 0:02:26]}  Nc7 {[%clk 0:01:23]} 21. Nc4 {[%clk 0:02:25]}  Qd8 {[%clk 0:01:22]} 22. h4 {[%clk 0:02:07]}  b6 {[%clk 0:01:20]} 23. Nb3 {[%clk 0:01:57]}  Qc8 {[%clk 0:01:11]} 24. Ne5 {[%clk 0:01:55]}  a4 {[%clk 0:01:05]} 25. Nxc6 {[%clk 0:01:49]}  Bxc6 {[%clk 0:01:03]} 26. Qxc6 {[%clk 0:01:49]}  axb3 {[%clk 0:00:56]} 27. Qxc7 {[%clk 0:01:49]}  Qxc7 {[%clk 0:00:55]} 28. Rxc7 {[%clk 0:01:49]}  Bd6 {[%clk 0:00:55]} 29. Rc3 {[%clk 0:01:48]}  Rfc8 {[%clk 0:00:55]} 30. Rxb3 {[%clk 0:01:47]}  Rc2 {[%clk 0:00:55]} 31. e5 {[%clk 0:01:41]}  Be7 {[%clk 0:00:52]} 32. Be4 {[%clk 0:01:40]}  Rc7 {[%clk 0:00:48]} 33. d5 {[%clk 0:01:33]}  exd5 {[%clk 0:00:45]} 34. Bxd5 {[%clk 0:01:33]}  Rd8 {[%clk 0:00:42]} 35. Kg2 {[%clk 0:01:31]}  Rcd7 {[%clk 0:00:35]} 36. Rbd3 {[%clk 0:01:31]}  Kf8 {[%clk 0:00:33]} 37. f4 {[%clk 0:01:31]}  Rc7 {[%clk 0:00:27]} 38. Kf3 {[%clk 0:01:29]}  Rc2 {[%clk 0:00:17]} 39. R1d2 {[%clk 0:01:29]}  Rc1 {[%clk 0:00:14]} 40. Bb3 {[%clk 0:01:27]}  Rdc8 {[%clk 0:00:10]} 41. f5 {[%clk 0:01:24]}  Rf1+ {[%clk 0:00:09]} 42. Rf2 {[%clk 0:01:23]}  Re1 {[%clk 0:00:09]} 43. e6 {[%clk 0:01:19]}  fxe6 {[%clk 0:00:09]} 44. fxe6 {[%clk 0:01:15]}  Bc5 {[%clk 0:00:09]} 45. Re2 {[%clk 0:01:14]}  Rf1+ {[%clk 0:00:09]} 46. Kg2 {[%clk 0:01:14]}  Rg1+ {[%clk 0:00:07]} 47. Kh2 {[%clk 0:01:14]}  g5 {[%clk 0:00:02]} 48. e7+ {[%clk 0:01:01]}  Kg7 {[%clk 0:00:02]} 49. e8=Q {[%clk 0:00:59]}  Rxe8 {[%clk 0:00:01]} 50. Rxe8 {[%clk 0:00:59]} 1-0


[Site "https://www.chess.com"]

[Event "Titled Tuesday Blitz August 1 Early 2023"]
[White "Papayan, Oleg"]
[Black "NovoselovRoman"]
[WhiteFideId "4193911"]
[WhiteElo "2502"]
[BlackElo "2608"]
[Result "1-0"]
[Round "10"]
[TimeControl "180+1"]
[Date "2023.08.01"]
[WhiteClock "0:00:05"]
[BlackClock "0:00:00"]
[Board "72"]

1. e4 {[%clk 0:02:59]}  d5 {[%clk 0:03:00]} 2. exd5 {[%clk 0:02:58]}  Qxd5 {[%clk 0:02:59]} 3. Nc3 {[%clk 0:02:58]}  Qd6 {[%clk 0:02:59]} 4. d4 {[%clk 0:02:58]}  Nf6 {[%clk 0:03:00]} 5. Nf3 {[%clk 0:02:58]}  c6 {[%clk 0:03:00]} 6. g3 {[%clk 0:02:58]}  Bf5 {[%clk 0:03:00]} 7. Bg2 {[%clk 0:02:56]}  e6 {[%clk 0:03:00]} 8. O-O {[%clk 0:02:54]}  Be7 {[%clk 0:03:00]} 9. Bf4 {[%clk 0:02:54]}  Qd8 {[%clk 0:03:01]} 10. Re1 {[%clk 0:02:35]}  O-O {[%clk 0:03:00]} 11. Ne5 {[%clk 0:02:31]}  Nbd7 {[%clk 0:02:59]} 12. Nc4 {[%clk 0:02:13]}  Nb6 {[%clk 0:02:57]} 13. Na5 {[%clk 0:02:06]}  Qd7 {[%clk 0:02:44]} 14. Qe2 {[%clk 0:01:47]}  Nbd5 {[%clk 0:02:38]} 15. Nxd5 {[%clk 0:01:39]}  cxd5 {[%clk 0:02:34]} 16. Nb3 {[%clk 0:01:26]}  Rac8 {[%clk 0:02:30]} 17. c3 {[%clk 0:01:26]}  Be4 {[%clk 0:02:22]} 18. f3 {[%clk 0:01:21]}  Bg6 {[%clk 0:02:22]} 19. a4 {[%clk 0:01:21]}  Rc4 {[%clk 0:01:51]} 20. Bf1 {[%clk 0:01:20]}  Rxa4 {[%clk 0:01:42]} 21. Nc5 {[%clk 0:00:52]}  Bxc5 {[%clk 0:01:41]} 22. dxc5 {[%clk 0:00:53]}  Rc8 {[%clk 0:01:25]} 23. b4 {[%clk 0:00:47]}  a5 {[%clk 0:01:16]} 24. Qb5 {[%clk 0:00:29]}  Rxa1 {[%clk 0:00:47]} 25. Rxa1 {[%clk 0:00:30]}  axb4 {[%clk 0:00:42]} 26. cxb4 {[%clk 0:00:31]}  d4 {[%clk 0:00:41]} 27. Qxd7 {[%clk 0:00:22]}  Nxd7 {[%clk 0:00:42]} 28. Ra7 {[%clk 0:00:23]}  e5 {[%clk 0:00:26]} 29. Bd2 {[%clk 0:00:12]}  Rb8 {[%clk 0:00:22]} 30. c6 {[%clk 0:00:13]}  Nf8 {[%clk 0:00:04]} 31. Rxb7 {[%clk 0:00:12]}  Rc8 {[%clk 0:00:04]} 32. b5 {[%clk 0:00:09]}  d3 {[%clk 0:00:04]} 33. c7 {[%clk 0:00:07]}  h5 {[%clk 0:00:04]} 34. b6 {[%clk 0:00:08]}  Bf5 {[%clk 0:00:04]} 35. Rb8 {[%clk 0:00:08]}  Kh7 {[%clk 0:00:00]} 36. Bxd3 {[%clk 0:00:05]} 1-0


[Site "https://www.chess.com"]

[Event "Titled Tuesday Blitz August 1 Early 2023"]
[White "Nareks, Matic"]
[Black "Burmakin, Vladimir"]
[WhiteFideId "14629526"]
[BlackFideId "4105109"]
[WhiteElo "2501"]
[BlackElo "2606"]
[Result "1/2-1/2"]
[Round "10"]
[TimeControl "180+1"]
[Date "2023.08.01"]
[WhiteClock "0:00:17"]
[BlackClock "0:00:09"]
[Board "73"]

1. e4 {[%clk 0:03:00]}  c6 {[%clk 0:03:00]} 2. d4 {[%clk 0:03:00]}  d5 {[%clk 0:03:00]} 3. e5 {[%clk 0:03:01]}  Bf5 {[%clk 0:03:00]} 4. h4 {[%clk 0:03:02]}  Qc8 {[%clk 0:02:58]} 5. h5 {[%clk 0:02:59]}  h6 {[%clk 0:02:57]} 6. Bd3 {[%clk 0:02:53]}  Bxd3 {[%clk 0:02:57]} 7. Qxd3 {[%clk 0:02:54]}  e6 {[%clk 0:02:57]} 8. c4 {[%clk 0:02:49]}  dxc4 {[%clk 0:02:55]} 9. Qxc4 {[%clk 0:02:49]}  Nd7 {[%clk 0:02:56]} 10. Nc3 {[%clk 0:02:47]}  Nb6 {[%clk 0:02:56]} 11. Qd3 {[%clk 0:02:47]}  Qd7 {[%clk 0:02:53]} 12. Be3 {[%clk 0:02:47]}  Ne7 {[%clk 0:02:52]} 13. Nge2 {[%clk 0:02:44]}  Ned5 {[%clk 0:02:52]} 14. Bd2 {[%clk 0:02:38]}  Nxc3 {[%clk 0:02:50]} 15. bxc3 {[%clk 0:02:38]}  c5 {[%clk 0:02:50]} 16. Rb1 {[%clk 0:02:30]}  Rc8 {[%clk 0:02:40]} 17. O-O {[%clk 0:02:25]}  Be7 {[%clk 0:02:29]} 18. Qg3 {[%clk 0:02:24]}  Kf8 {[%clk 0:02:29]} 19. Rfc1 {[%clk 0:02:16]}  Kg8 {[%clk 0:02:27]} 20. Qg4 {[%clk 0:01:57]}  Qd8 {[%clk 0:02:05]} 21. Ng3 {[%clk 0:01:53]}  Bg5 {[%clk 0:02:02]} 22. f4 {[%clk 0:01:51]}  Be7 {[%clk 0:02:01]} 23. f5 {[%clk 0:01:50]}  Bg5 {[%clk 0:02:00]} 24. Bxg5 {[%clk 0:01:47]}  Qxg5 {[%clk 0:01:59]} 25. Qxg5 {[%clk 0:01:47]}  hxg5 {[%clk 0:01:59]} 26. a4 {[%clk 0:01:34]}  cxd4 {[%clk 0:01:47]} 27. cxd4 {[%clk 0:01:34]}  exf5 {[%clk 0:01:45]} 28. a5 {[%clk 0:01:31]}  Rxc1+ {[%clk 0:01:44]} 29. Rxc1 {[%clk 0:01:32]}  Nd5 {[%clk 0:01:44]} 30. Nxf5 {[%clk 0:01:28]}  Rxh5 {[%clk 0:01:32]} 31. Nd6 {[%clk 0:01:12]}  Rh4 {[%clk 0:01:26]} 32. Rc8+ {[%clk 0:01:10]}  Kh7 {[%clk 0:01:25]} 33. Nxf7 {[%clk 0:01:11]}  Rxd4 {[%clk 0:01:22]} 34. Nxg5+ {[%clk 0:01:06]}  Kg6 {[%clk 0:01:21]} 35. Nf3 {[%clk 0:01:04]}  Rd1+ {[%clk 0:01:18]} 36. Kh2 {[%clk 0:01:04]}  Ne3 {[%clk 0:01:10]} 37. Rc3 {[%clk 0:00:56]}  Nf5 {[%clk 0:01:01]} 38. Rc7 {[%clk 0:00:56]}  Ra1 {[%clk 0:00:59]} 39. Rc5 {[%clk 0:00:50]}  Ra2 {[%clk 0:00:47]} 40. Kh3 {[%clk 0:00:47]}  Ne3 {[%clk 0:00:42]} 41. g4 {[%clk 0:00:43]}  Ra3 {[%clk 0:00:41]} 42. Kg3 {[%clk 0:00:43]}  Ra4 {[%clk 0:00:32]} 43. Nh4+ {[%clk 0:00:37]}  Kh7 {[%clk 0:00:27]} 44. Rc7 {[%clk 0:00:29]}  Nxg4 {[%clk 0:00:26]} 45. Nf5 {[%clk 0:00:25]}  Nxe5 {[%clk 0:00:23]} 46. Rxg7+ {[%clk 0:00:21]}  Kh8 {[%clk 0:00:23]} 47. Rxb7 {[%clk 0:00:22]}  Rxa5 {[%clk 0:00:22]} 48. Kf4 {[%clk 0:00:22]}  Ng6+ {[%clk 0:00:17]} 49. Kg5 {[%clk 0:00:23]}  Nh4 {[%clk 0:00:10]} 50. Kxh4 {[%clk 0:00:17]}  Rxf5 {[%clk 0:00:09]} 51. Rxa7 {[%clk 0:00:17]}  Kg8 {[%clk 0:00:09]} 52. Ra8+ {[%clk 0:00:17]}  Rf8 {[%clk 0:00:09]} 53. Rxf8+ {[%clk 0:00:17]}  Kxf8 {[%clk 0:00:09]} 1/2-1/2


[Site "https://www.chess.com"]

[Event "Titled Tuesday Blitz August 1 Early 2023"]
[White "Derige Kane, Yan"]
[Black "Kovalevsky, Stanislav"]
[WhiteFideId "20665431"]
[BlackFideId "13508598"]
[WhiteElo "2594"]
[BlackElo "2495"]
[Result "0-1"]
[Round "10"]
[TimeControl "180+1"]
[Date "2023.08.01"]
[WhiteClock "0:00:24"]
[BlackClock "0:00:09"]
[Board "75"]

1. d4 {[%clk 0:03:00]}  d5 {[%clk 0:02:59]} 2. c4 {[%clk 0:03:01]}  c6 {[%clk 0:02:59]} 3. Nc3 {[%clk 0:03:01]}  Nf6 {[%clk 0:02:59]} 4. Nf3 {[%clk 0:03:02]}  dxc4 {[%clk 0:02:59]} 5. a4 {[%clk 0:03:01]}  a5 {[%clk 0:02:55]} 6. e4 {[%clk 0:02:59]}  Bg4 {[%clk 0:02:44]} 7. Bxc4 {[%clk 0:02:58]}  Bxf3 {[%clk 0:02:40]} 8. gxf3 {[%clk 0:02:58]}  e6 {[%clk 0:02:40]} 9. Qb3 {[%clk 0:02:54]}  Bb4 {[%clk 0:02:34]} 10. Rg1 {[%clk 0:02:52]}  Qxd4 {[%clk 0:02:27]} 11. Be3 {[%clk 0:02:49]}  Qe5 {[%clk 0:02:25]} 12. f4 {[%clk 0:02:45]}  Qxe4 {[%clk 0:02:20]} 13. O-O-O {[%clk 0:02:40]}  Bxc3 {[%clk 0:01:40]} 14. Qxc3 {[%clk 0:02:41]}  Nbd7 {[%clk 0:01:33]} 15. Rxg7 {[%clk 0:02:36]}  Rf8 {[%clk 0:01:30]} 16. Rgg1 {[%clk 0:01:51]}  Nd5 {[%clk 0:01:29]} 17. Bxd5 {[%clk 0:01:50]}  cxd5 {[%clk 0:01:29]} 18. Rge1 {[%clk 0:01:48]}  Qxa4 {[%clk 0:01:27]} 19. f5 {[%clk 0:01:43]}  Qc6 {[%clk 0:01:20]} 20. Qxc6 {[%clk 0:01:36]}  bxc6 {[%clk 0:01:20]} 21. fxe6 {[%clk 0:01:37]}  fxe6 {[%clk 0:01:20]} 22. Bd4 {[%clk 0:01:37]}  Ke7 {[%clk 0:01:15]} 23. Re2 {[%clk 0:01:34]}  Kd6 {[%clk 0:01:12]} 24. Rde1 {[%clk 0:01:32]}  Rae8 {[%clk 0:01:00]} 25. Bc3 {[%clk 0:01:31]}  a4 {[%clk 0:00:59]} 26. Rg1 {[%clk 0:01:28]}  c5 {[%clk 0:00:53]} 27. Rg7 {[%clk 0:01:27]}  Re7 {[%clk 0:00:53]} 28. Rg4 {[%clk 0:01:23]}  d4 {[%clk 0:00:46]} 29. Be1 {[%clk 0:01:13]}  e5 {[%clk 0:00:44]} 30. Rh4 {[%clk 0:01:11]}  Rf4 {[%clk 0:00:41]} 31. Rh6+ {[%clk 0:01:09]}  Rf6 {[%clk 0:00:40]} 32. Rh3 {[%clk 0:01:07]}  Nb6 {[%clk 0:00:39]} 33. b3 {[%clk 0:01:03]}  Kd5 {[%clk 0:00:30]} 34. bxa4 {[%clk 0:00:58]}  Nxa4 {[%clk 0:00:29]} 35. Ra3 {[%clk 0:00:59]}  Nb6 {[%clk 0:00:27]} 36. f3 {[%clk 0:00:49]}  Nc4 {[%clk 0:00:19]} 37. Rb3 {[%clk 0:00:49]}  Rb6 {[%clk 0:00:19]} 38. Rxb6 {[%clk 0:00:44]}  Nxb6 {[%clk 0:00:20]} 39. Bg3 {[%clk 0:00:44]}  e4 {[%clk 0:00:19]} 40. fxe4+ {[%clk 0:00:44]}  Rxe4 {[%clk 0:00:19]} 41. Rf2 {[%clk 0:00:44]}  Kc4 {[%clk 0:00:18]} 42. Rc2+ {[%clk 0:00:44]}  Kb5 {[%clk 0:00:18]} 43. Rb2+ {[%clk 0:00:44]}  Kc6 {[%clk 0:00:18]} 44. Rf2 {[%clk 0:00:43]}  c4 {[%clk 0:00:18]} 45. Rf6+ {[%clk 0:00:41]}  Kb5 {[%clk 0:00:18]} 46. Bc7 {[%clk 0:00:39]}  Na4 {[%clk 0:00:17]} 47. Bd6 {[%clk 0:00:36]}  c3 {[%clk 0:00:17]} 48. Kc2 {[%clk 0:00:36]}  Kc4 {[%clk 0:00:15]} 49. Rf8 {[%clk 0:00:31]}  d3+ {[%clk 0:00:14]} 50. Kb1 {[%clk 0:00:31]}  Re1+ {[%clk 0:00:13]} 51. Ka2 {[%clk 0:00:31]}  Nc5 {[%clk 0:00:12]} 52. Rc8 {[%clk 0:00:30]}  d2 {[%clk 0:00:11]} 53. Bxc5 {[%clk 0:00:29]}  d1=Q {[%clk 0:00:10]} 54. Bf2+ {[%clk 0:00:28]}  Kb5 {[%clk 0:00:09]} 55. Rb8+ {[%clk 0:00:27]}  Kc6 {[%clk 0:00:09]} 56. Bxe1 {[%clk 0:00:25]}  Qxe1 {[%clk 0:00:10]} 57. Rc8+ {[%clk 0:00:23]}  Kb7 {[%clk 0:00:09]} 58. Rh8 {[%clk 0:00:21]}  Qd2+ {[%clk 0:00:09]} 59. Kb3 {[%clk 0:00:21]}  Qb2+ {[%clk 0:00:09]} 60. Kc4 {[%clk 0:00:21]}  c2 {[%clk 0:00:09]} 61. Rxh7+ {[%clk 0:00:22]}  Kc6 {[%clk 0:00:09]} 62. Rh6+ {[%clk 0:00:21]}  Kd7 {[%clk 0:00:10]} 63. Rh7+ {[%clk 0:00:21]}  Ke6 {[%clk 0:00:10]} 64. Rh6+ {[%clk 0:00:21]}  Kf7 {[%clk 0:00:11]} 65. Rh7+ {[%clk 0:00:21]}  Kg6 {[%clk 0:00:11]} 66. Rh3 {[%clk 0:00:21]}  c1=Q+ {[%clk 0:00:11]} 67. Kd5 {[%clk 0:00:22]}  Qbd2+ {[%clk 0:00:11]} 68. Ke4 {[%clk 0:00:22]}  Qce1+ {[%clk 0:00:11]} 69. Kf3 {[%clk 0:00:22]}  Qdf2+ {[%clk 0:00:11]} 70. Kg4 {[%clk 0:00:23]}  Qeg1+ {[%clk 0:00:11]} 71. Rg3 {[%clk 0:00:23]}  Qgxg3+ {[%clk 0:00:09]} 72. hxg3 {[%clk 0:00:24]}  Qf5+ {[%clk 0:00:09]} 73. Kh4 {[%clk 0:00:24]}  Qh5# {[%clk 0:00:09]} 0-1


[Site "https://www.chess.com"]

[Event "Titled Tuesday Blitz August 1 Early 2023"]
[White "Mmukka"]
[Black "vishwa_vijeta"]
[WhiteElo "2494"]
[BlackElo "2588"]
[Result "0-1"]
[Round "10"]
[TimeControl "180+1"]
[Date "2023.08.01"]
[WhiteClock "0:00:00"]
[BlackClock "0:00:33"]
[Board "76"]

1. e4 {[%clk 0:03:00]}  c5 {[%clk 0:03:00]} 2. Nf3 {[%clk 0:02:59]}  d6 {[%clk 0:03:00]} 3. d4 {[%clk 0:02:59]}  cxd4 {[%clk 0:03:01]} 4. Nxd4 {[%clk 0:03:00]}  Nf6 {[%clk 0:03:02]} 5. Nc3 {[%clk 0:02:59]}  g6 {[%clk 0:03:02]} 6. Be2 {[%clk 0:02:58]}  Bg7 {[%clk 0:03:02]} 7. O-O {[%clk 0:02:58]}  O-O {[%clk 0:03:03]} 8. Bg5 {[%clk 0:02:58]}  Nc6 {[%clk 0:03:03]} 9. Nb3 {[%clk 0:02:59]}  Bd7 {[%clk 0:03:02]} 10. f4 {[%clk 0:02:52]}  Rc8 {[%clk 0:02:58]} 11. Bf3 {[%clk 0:02:29]}  a6 {[%clk 0:02:34]} 12. Qd2 {[%clk 0:02:11]}  b5 {[%clk 0:02:31]} 13. Rad1 {[%clk 0:02:10]}  Re8 {[%clk 0:02:11]} 14. Rfe1 {[%clk 0:02:07]}  Qb6+ {[%clk 0:02:09]} 15. Kh1 {[%clk 0:02:05]}  Ng4 {[%clk 0:02:09]} 16. Re2 {[%clk 0:01:46]}  h5 {[%clk 0:01:18]} 17. h3 {[%clk 0:01:40]}  Nh6 {[%clk 0:01:17]} 18. Nd5 {[%clk 0:01:31]}  Qb7 {[%clk 0:01:16]} 19. e5 {[%clk 0:01:09]}  Nf5 {[%clk 0:01:06]} 20. Qe1 {[%clk 0:00:59]}  dxe5 {[%clk 0:01:03]} 21. Nc5 {[%clk 0:00:55]}  Qa7 {[%clk 0:00:56]} 22. Nxd7 {[%clk 0:00:54]}  Ncd4 {[%clk 0:00:56]} 23. Qf2 {[%clk 0:00:36]}  Qxd7 {[%clk 0:00:52]} 24. c3 {[%clk 0:00:31]}  Nxe2 {[%clk 0:00:44]} 25. Nf6+ {[%clk 0:00:31]}  exf6 {[%clk 0:00:44]} 26. Rxd7 {[%clk 0:00:32]}  Neg3+ {[%clk 0:00:41]} 27. Kh2 {[%clk 0:00:31]}  fxg5 {[%clk 0:00:39]} 28. Bd5 {[%clk 0:00:26]}  exf4 {[%clk 0:00:37]} 29. Bxf7+ {[%clk 0:00:26]}  Kh7 {[%clk 0:00:37]} 30. Bxe8 {[%clk 0:00:14]}  Rxe8 {[%clk 0:00:37]} 31. a4 {[%clk 0:00:10]}  Re2 {[%clk 0:00:35]} 32. Qg1 {[%clk 0:00:04]}  f3 {[%clk 0:00:33]} 33. axb5 {[%clk 0:00:03]}  f2 {[%clk 0:00:33]} 34. Qxf2 {[%clk 0:00:02]}  Rxf2 {[%clk 0:00:33]} 35. bxa6 {[%clk 0:00:00]}  Rf1 {[%clk 0:00:33]} 0-1


[Site "https://www.chess.com"]

[Event "Titled Tuesday Blitz August 1 Early 2023"]
[White "Omorjan, Dejan"]
[Black "Rosh Jain"]
[WhiteFideId "955345"]
[BlackFideId "25789465"]
[WhiteElo "2579"]
[BlackElo "2472"]
[Result "1-0"]
[Round "10"]
[TimeControl "180+1"]
[Date "2023.08.01"]
[WhiteClock "0:01:22"]
[BlackClock "0:01:59"]
[Board "77"]

1. e4 {[%clk 0:02:58]}  c5 {[%clk 0:02:58]} 2. Nf3 {[%clk 0:02:59]}  d6 {[%clk 0:02:58]} 3. Bb5+ {[%clk 0:02:59]}  Nd7 {[%clk 0:02:58]} 4. O-O {[%clk 0:02:56]}  Nf6 {[%clk 0:02:57]} 5. Re1 {[%clk 0:02:56]}  g6 {[%clk 0:02:57]} 6. c3 {[%clk 0:02:51]}  a6 {[%clk 0:02:57]} 7. Bf1 {[%clk 0:02:49]}  Bg7 {[%clk 0:02:57]} 8. d4 {[%clk 0:02:49]}  e5 {[%clk 0:02:56]} 9. d5 {[%clk 0:02:36]}  O-O {[%clk 0:02:54]} 10. a4 {[%clk 0:02:37]}  h6 {[%clk 0:02:53]} 11. Na3 {[%clk 0:02:34]}  Ne8 {[%clk 0:02:50]} 12. Nc4 {[%clk 0:02:29]}  b6 {[%clk 0:02:40]} 13. Be3 {[%clk 0:02:08]}  f5 {[%clk 0:02:29]} 14. exf5 {[%clk 0:02:08]}  gxf5 {[%clk 0:02:30]} 15. g3 {[%clk 0:01:45]}  Qe7 {[%clk 0:02:19]} 16. Nh4 {[%clk 0:01:44]}  Qf7 {[%clk 0:02:14]} 17. Bh3 {[%clk 0:01:36]}  f4 {[%clk 0:02:10]} 18. Be6 {[%clk 0:01:35]}  fxe3 {[%clk 0:02:08]} 19. fxe3 {[%clk 0:01:30]}  Nef6 {[%clk 0:01:59]} 20. Nxd6 {[%clk 0:01:22]} 1-0


[Site "https://www.chess.com"]

[Event "Titled Tuesday Blitz August 1 Early 2023"]
[White "Demin, Vladimir"]
[Black "EsmeraldasAnderson03"]
[WhiteFideId "4167457"]
[WhiteElo "2564"]
[BlackElo "2450"]
[Result "1-0"]
[Round "10"]
[TimeControl "180+1"]
[Date "2023.08.01"]
[WhiteClock "0:01:08"]
[BlackClock "0:00:00"]
[Board "80"]

1. d4 {[%clk 0:03:00]}  d5 {[%clk 0:02:59]} 2. Nc3 {[%clk 0:02:59]}  Nf6 {[%clk 0:02:58]} 3. Bf4 {[%clk 0:02:58]}  a6 {[%clk 0:02:58]} 4. e3 {[%clk 0:02:57]}  b5 {[%clk 0:02:57]} 5. Nf3 {[%clk 0:02:52]}  e6 {[%clk 0:02:55]} 6. Ne5 {[%clk 0:02:48]}  Bb7 {[%clk 0:02:54]} 7. g4 {[%clk 0:02:45]}  b4 {[%clk 0:02:46]} 8. Na4 {[%clk 0:02:42]}  Nbd7 {[%clk 0:02:47]} 9. g5 {[%clk 0:02:38]}  Nxe5 {[%clk 0:02:47]} 10. Bxe5 {[%clk 0:02:36]}  Nd7 {[%clk 0:02:46]} 11. Bf4 {[%clk 0:02:31]}  Bd6 {[%clk 0:02:45]} 12. Bd3 {[%clk 0:02:29]}  Bc6 {[%clk 0:02:25]} 13. b3 {[%clk 0:02:24]}  Bxa4 {[%clk 0:02:16]} 14. bxa4 {[%clk 0:02:25]}  Bxf4 {[%clk 0:02:12]} 15. exf4 {[%clk 0:02:25]}  c5 {[%clk 0:02:09]} 16. dxc5 {[%clk 0:02:21]}  Nxc5 {[%clk 0:02:10]} 17. Qd2 {[%clk 0:02:15]}  O-O {[%clk 0:01:50]} 18. Qxb4 {[%clk 0:02:09]}  Qc7 {[%clk 0:01:41]} 19. O-O {[%clk 0:02:06]}  a5 {[%clk 0:01:35]} 20. Qd4 {[%clk 0:02:05]}  Rab8 {[%clk 0:01:33]} 21. Rab1 {[%clk 0:02:01]}  Qc6 {[%clk 0:01:33]} 22. Bb5 {[%clk 0:02:00]}  Qd6 {[%clk 0:01:32]} 23. Rfe1 {[%clk 0:01:52]}  Rfd8 {[%clk 0:01:22]} 24. Rbd1 {[%clk 0:01:51]}  g6 {[%clk 0:01:20]} 25. c4 {[%clk 0:01:50]}  Qc7 {[%clk 0:00:43]} 26. Rc1 {[%clk 0:01:48]}  Qb6 {[%clk 0:00:24]} 27. Red1 {[%clk 0:01:40]}  dxc4 {[%clk 0:00:11]} 28. Qxc4 {[%clk 0:01:41]}  Rxd1+ {[%clk 0:00:08]} 29. Rxd1 {[%clk 0:01:42]}  Nb7 {[%clk 0:00:00]} 30. Bc6 {[%clk 0:01:08]} 1-0


[Site "https://www.chess.com"]